bitfinex-derivatives/quotes_BTCF0:USTF0_20241214
["timestamp","ask_amount","ask_price","bid_price","bid_amount"]
[1734198031525,0.55690006,101080.0,101070.0,0.14668873]
[1734198032328,0.55690006,101080.0,101070.0,0.10339858]
[1734198032531,0.55690006,101080.0,101070.0,0.14668873]
[1734198033734,0.55690006,101080.0,101070.0,0.10339858]
[1734198034429,0.67417723,101080.0,101070.0,0.10339858]
[1734198035025,0.67417723,101080.0,101070.0,0.14668873]
[1734198035226,0.67417723,101080.0,101070.0,0.10339858]
[1734198035425,0.67417723,101080.0,101070.0,0.14668873]
[1734198036429,0.67417723,101080.0,101070.0,0.10339858]
[1734198036729,0.67417723,101080.0,101070.0,0.14668795]
[1734198036924,0.67417723,101080.0,101070.0,0.10339858]
[1734198037737,1.03497723,101080.0,101070.0,0.10339858]
[1734198037926,1.03497723,101080.0,101070.0,0.14668769]
[1734198038232,1.03497723,101080.0,101070.0,0.10339858]
[1734198038432,1.03497723,101080.0,101070.0,0.14668716]
[1734198038635,0.88834517,101080.0,101070.0,0.14668716]
[1734198039224,0.88834517,101080.0,101070.0,0.10339858]
[1734198041437,0.95000794,101080.0,101070.0,0.049473]
[1734198041626,1.09664,101080.0,101070.0,0.049473]
[1734198042532,1.09664,101080.0,101070.0,0.0927623]
[1734198042738,1.09664494,101080.0,101070.0,0.0927623]
[1734198042930,1.09664411,101080.0,101070.0,0.0927623]
[1734198043334,0.97936283,101080.0,101070.0,0.049473]
[1734198043537,0.97949127,101080.0,101060.0,0.46311718]
[1734198043727,0.56609659,101070.0,101060.0,0.46261718]
[1734198044229,0.56609659,101070.0,101060.0,0.75865619]
[1734198044627,0.47811234,101070.0,101060.0,0.46311718]
[1734198044932,0.56611325,101070.0,101060.0,0.46311718]
[1734198045131,0.56611325,101070.0,101060.0,0.75915619]
[1734198045629,0.56611325,101070.0,101060.0,0.75865619]
[1734198046636,0.56611325,101070.0,101060.0,0.75915619]
[1734198048035,0.47811234,101070.0,101060.0,0.46311718]
[1734198048830,0.56611804,101070.0,101060.0,0.75915619]
[1734198049124,0.56611804,101070.0,101060.0,0.46311718]
[1734198049326,0.56612364,101070.0,101060.0,0.75915619]
[1734198049536,0.56612363,101070.0,101060.0,0.82081896]
[1734198049732,0.47811234,101070.0,101060.0,0.40121718]
[1734198049929,0.54071234,101070.0,101060.0,0.69725619]
[1734198051139,0.90151234,101070.0,101060.0,0.69725619]
[1734198052836,0.90151234,101070.0,101060.0,0.75891896]
[1734198052837,0.83891234,101070.0,101060.0,0.75891896]
[1734198053338,0.83891234,101070.0,101060.0,0.81951896]
[1734198054345,0.83891234,101070.0,101060.0,0.75785619]
[1734198055041,0.83891234,101070.0,101060.0,0.81951896]
[1734198055542,0.83891234,101070.0,101060.0,0.58252963]
[1734198055941,0.92696048,101070.0,101060.0,0.58252963]
[1734198058853,0.20536048,101070.0,101060.0,0.93796267]
[1734198061055,0.08804814,101070.0,101060.0,0.64192366]
[1734198062656,0.44884814,101070.0,101060.0,0.51859812]
[1734198062854,0.44884814,101070.0,101060.0,0.87684785]
[1734198063050,0.44884814,101070.0,101060.0,0.75458508]
[1734198063254,0.62566048,101070.0,101060.0,0.81624785]
[1734198063454,0.62566048,101070.0,101060.0,0.46081481]
[1734198063755,0.53761234,101070.0,101060.0,0.69810646]
[1734198063951,0.62563179,101070.0,101060.0,0.46081481]
[1734198065253,0.53761234,101070.0,101060.0,0.46081481]
[1734198065653,0.62563305,101070.0,101060.0,0.46081481]
[1734198065859,0.62563373,101070.0,101060.0,0.46081481]
[1734198066065,0.53761234,101070.0,101060.0,0.52247758]
[1734198066862,0.56613455,101070.0,101060.0,0.52247758]
[1734198067263,0.56613455,101070.0,101060.0,0.58587758]
[1734198067958,0.56613455,101070.0,101060.0,0.94131062]
[1734198069771,0.56613455,101070.0,101060.0,0.58587758]
[1734198073258,0.56613455,101070.0,101060.0,0.52421481]
[1734198073553,0.47811234,101070.0,101060.0,0.48092551]
[1734198073752,0.47811234,101070.0,101060.0,0.54258828]
[1734198073957,0.47811234,101070.0,101060.0,0.41926274]
[1734198074156,0.53977511,101070.0,101060.0,0.34606296]
[1734198074358,0.59957511,101070.0,101060.0,0.34606296]
[1734198074561,0.68760333,101070.0,101060.0,0.38935226]
[1734198074769,0.68760333,101070.0,101060.0,0.45101503]
[1734198074770,0.75020333,101070.0,101060.0,0.45101503]
[1734198075064,0.75020333,101070.0,101060.0,0.68829415]
[1734198075458,0.80880717,101070.0,101060.0,0.68829415]
[1734198075763,0.80880717,101070.0,101060.0,0.65776815]
[1734198076361,0.7471444,101070.0,101060.0,0.65776815]
[1734198077873,0.7471444,101070.0,101060.0,0.39170519]
[1734198078569,1.1079444,101070.0,101060.0,0.39170519]
[1734198081075,1.16960717,101070.0,101060.0,0.33004242]
[1734198081377,1.16960717,101070.0,101060.0,0.39170519]
[1734198081978,1.1079444,101070.0,101060.0,0.39170519]
[1734198084070,0.96131234,101070.0,101060.0,0.39170519]
[1734198084975,1.1079444,101070.0,101060.0,0.39170519]
[1734198085773,0.96131234,101070.0,101060.0,0.39170519]
[1734198086372,1.1079444,101070.0,101060.0,0.39170519]
[1734198086769,0.96131234,101070.0,101060.0,0.39170519]
[1734198091077,1.1079444,101070.0,101060.0,0.39170519]
[1734198093571,0.9855444,101070.0,101060.0,0.45336796]
[1734198093774,0.83891234,101070.0,101060.0,0.63686796]
[1734198094079,0.11731234,101070.0,101060.0,0.39958884]
[1734198094380,0.20534468,101070.0,101060.0,0.75502188]
[1734198096488,0.08803234,101070.0,101060.0,0.75502188]
[1734198098989,0.08803234,101070.0,101060.0,0.39958884]
[1734198100089,0.08803234,101070.0,101060.0,0.75502188]
[1734198100090,0.03237986,101070.0,101060.0,0.75502188]
[1734198101990,0.36092844,101080.0,101070.0,0.049473]
[1734198102291,0.36092844,101080.0,101070.0,0.15442507]
[1734198103881,0.36092844,101080.0,101070.0,0.0927623]
[1734198104087,0.36092844,101080.0,101070.0,0.15442507]
[1734198104477,0.36092844,101080.0,101070.0,0.049473]
[1734198104885,0.36092844,101080.0,101070.0,0.11113577]
[1734198105088,0.36092844,101080.0,101070.0,0.34814907]
[1734198105288,0.36092844,101080.0,101070.0,0.11113577]
[1734198105592,0.00012844,101080.0,101070.0,0.82982]
[1734198105789,0.00012844,101080.0,101070.0,0.70649446]
[1734198105983,0.00012844,101080.0,101070.0,0.76815723]
[1734198106185,0.00012844,101080.0,101070.0,0.81144653]
[1734198106386,0.00012844,101080.0,101070.0,0.76815723]
[1734198106796,0.00012844,101080.0,101070.0,0.8731093]
[1734198106985,0.00012844,101080.0,101070.0,1.22854234]
[1734198107890,0.00012844,101080.0,101070.0,1.22838627]
[1734198108095,0.00012844,101080.0,101070.0,0.93232088]
[1734198108683,0.3608,101100.0,101080.0,0.049468]
[1734198108888,0.3608,101100.0,101090.0,0.34788191]
[1734198109090,0.3608,101100.0,101090.0,0.40954468]
[1734198109793,0.36088281,101100.0,101090.0,0.34788191]
[1734198109993,0.36088281,101100.0,101090.0,0.40954468]
[1734198112197,0.36088281,101100.0,101090.0,0.34788191]
[1734198113791,8.281e-05,101100.0,101090.0,0.34788191]
[1734198113994,0.36088281,101100.0,101090.0,0.35742804]
[1734198115892,0.36138281,101100.0,101090.0,0.35742804]
[1734198116897,0.36088281,101100.0,101090.0,0.35742804]
[1734198117711,0.36138281,101100.0,101090.0,0.35742804]
[1734198118804,0.36088281,101100.0,101090.0,0.35742804]
[1734198119894,0.36138281,101100.0,101090.0,0.35742804]
[1734198120800,0.36088281,101100.0,101090.0,0.35742804]
[1734198121896,0.36138281,101100.0,101090.0,0.35742804]
[1734198122602,0.36138281,101100.0,101090.0,0.37729165]
[1734198122803,0.36088281,101100.0,101090.0,0.43895442]
[1734198123599,0.36088281,101100.0,101090.0,0.37729165]
[1734198123802,0.36138281,101100.0,101090.0,0.37729165]
[1734198125904,0.36088281,101100.0,101090.0,0.37729165]
[1734198128406,0.36088281,101100.0,101090.0,0.43895442]
[1734198129204,8.281e-05,101100.0,101090.0,0.43895442]
[1734198129501,8.281e-05,101100.0,101090.0,1.13898889]
[1734198129708,8.281e-05,101100.0,101090.0,0.85894345]
[1734198129910,8.281e-05,101100.0,101090.0,0.90223275]
[1734198130099,8.281e-05,101100.0,101090.0,0.85894345]
[1734198131004,8.281e-05,101100.0,101090.0,0.91843132]
[1734198131803,8.281e-05,101100.0,101090.0,0.93327132]
[1734198132096,0.50099515,101120.0,101110.0,0.049453]
[1734198132299,0.50099515,101120.0,101110.0,0.17277854]
[1734198132501,0.50099515,101120.0,101110.0,0.34790254]
[1734198133305,0.38368281,101120.0,101110.0,0.34790254]
[1734198133615,0.50099515,101120.0,101110.0,0.34790254]
[1734198134002,0.50099515,101120.0,101110.0,0.28623977]
[1734198134212,0.56265792,101120.0,101110.0,0.28623977]
[1734198134401,0.50099515,101120.0,101110.0,0.34790254]
[1734198134812,0.50149515,101120.0,101110.0,0.34790254]
[1734198135011,0.47861234,101120.0,101110.0,0.34790254]
[1734198135207,0.47861234,101120.0,101110.0,0.40956531]
[1734198135404,0.0005,101120.0,101110.0,0.70554877]
[1734198135915,0.66371234,101130.0,101120.0,0.049448]
[1734198136107,0.66371234,101130.0,101120.0,0.40963066]
[1734198138413,0.4834,101130.0,101120.0,0.40963066]
[1734198139522,0.3608,101130.0,101120.0,0.40963066]
[1734198139820,0.3613,101130.0,101120.0,0.40963066]
[1734198141816,0.3613,101130.0,101120.0,0.34796789]
[1734198142022,0.4201,101130.0,101120.0,0.34796789]
[1734198142221,0.4201,101130.0,101120.0,0.11111077]
[1734198142821,0.4201,101130.0,101120.0,0.17277354]
[1734198143410,0.4201,101130.0,101120.0,0.11111077]
[1734198143608,0.4201,101130.0,101120.0,0.049448]
[1734198143828,0.48176277,101130.0,101110.0,1.01917153]
[1734198144016,0.54276277,101130.0,101120.0,0.06166277]
[1734198144618,0.4811,101130.0,101120.0,0.06166277]
[1734198145621,0.4811,101130.0,101120.0,0.36018266]
[1734198146916,0.59841234,101130.0,101120.0,0.06166277]
[1734198147513,0.59841234,101130.0,101120.0,0.29851989]
[1734198147718,0.59841234,101130.0,101120.0,0.06166277]
[1734198150229,0.4811,101130.0,101120.0,0.06166277]
[1734198152931,0.4806,101130.0,101120.0,0.06166277]
[1734198153427,0.4196,101130.0,101120.0,0.06166277]
[1734198153933,0.53691234,101130.0,101120.0,0.06166277]
[1734198154123,0.4196,101130.0,101120.0,0.06166277]
[1734198154427,0.4196,101130.0,101120.0,0.17277354]
[1734198154626,0.3608,101130.0,101120.0,0.29767354]
[1734198154825,0.3608,101130.0,101120.0,0.53453066]
[1734198155235,0.3608,101130.0,101120.0,0.59333066]
[1734198158028,0.3608,101130.0,101120.0,0.88931412]
[1734198159127,0.3608,101130.0,101120.0,0.85983652]
[1734198159334,0.3608,101130.0,101120.0,0.6229794]
[1734198165231,0.47811234,101130.0,101120.0,0.52913146]
[1734198168741,0.47811234,101130.0,101120.0,0.34543146]
[1734198168941,0.47811234,101130.0,101120.0,0.29598346]
[1734198169142,0.53731234,101130.0,101120.0,0.29598346]
[1734198169439,0.60171234,101130.0,101120.0,0.53309967]
[1734198169938,0.60171234,101130.0,101120.0,0.23711621]
[1734198171443,0.60171234,101130.0,101120.0,0.53309967]
[1734198172847,0.69556028,101130.0,101120.0,0.53309967]
[1734198179350,0.69556028,101130.0,101120.0,0.58254767]
[1734198179939,0.69556028,101130.0,101120.0,0.53309967]
[1734198179940,0.74500328,101130.0,101120.0,0.53309967]
[1734198180140,0.89163534,101130.0,101120.0,0.23711621]
[1734198181150,0.85940876,101130.0,101120.0,0.28656421]
[1734198182342,0.74209642,101130.0,101120.0,0.23711621]
[1734198183854,0.85948919,101130.0,101120.0,0.23711621]
[1734198184252,1.10371778,101130.0,101120.0,0.23711621]
[1734198184449,1.10371778,101130.0,101110.0,0.24695188]
[1734198184450,0.049448,101120.0,101110.0,0.24695188]
[1734198184646,0.049453,101110.0,101100.0,0.23711621]
[1734198184845,0.049458,101100.0,101090.0,0.41497884]
[1734198185046,0.59160072,101100.0,101090.0,0.17786263]
[1734198185240,1.03799366,101100.0,101090.0,0.17786263]
[1734198185455,1.12917823,101100.0,101070.0,0.050382]
[1734198185656,1.12917823,101100.0,101070.0,0.09366719]
[1734198185657,0.78322136,101080.0,101070.0,0.09366719]
[1734198186153,0.78322136,101080.0,101070.0,0.04419519]
[1734198186154,1.07284049,101080.0,101070.0,0.04419519]
[1734198186359,0.95572527,101080.0,101070.0,0.04419519]
[1734198187353,0.92647872,101080.0,101070.0,0.00091]
[1734198187747,0.98617872,101080.0,101070.0,0.00091]
[1734198189360,0.89218255,101080.0,101070.0,0.00091]
[1734198198766,0.17058255,101080.0,101070.0,0.00091]
[1734198199060,0.98617872,101080.0,101070.0,0.00091]
[1734198199962,0.98617872,101080.0,101070.0,0.00141]
[1734198203270,0.98617872,101080.0,101070.0,0.0005]
[1734198205676,0.89218255,101080.0,101070.0,0.0005]
[1734198205871,0.98617872,101080.0,101070.0,0.0005]
[1734198206878,0.26457872,101080.0,101070.0,0.0005]
[1734198207084,0.98617872,101080.0,101070.0,0.0005]
[1734198207279,1.13268651,101080.0,101070.0,0.0005]
[1734198207980,1.13268651,101080.0,101060.0,0.176377]
[1734198208286,0.42249437,101070.0,101060.0,0.176377]
[1734198208874,0.42249437,101070.0,101060.0,0.176877]
[1734198210091,0.3608,101070.0,101060.0,0.23807137]
[1734198210285,0.42249437,101070.0,101060.0,0.23807137]
[1734198210588,0.42249437,101070.0,101060.0,0.176377]
[1734198211086,0.42249437,101070.0,101060.0,0.176877]
[1734198211288,0.47196737,101070.0,101060.0,0.176877]
[1734198211589,0.47196737,101070.0,101060.0,0.22016809]
[1734198212189,0.58908259,101070.0,101060.0,0.17069109]
[1734198212582,0.65077696,101070.0,101060.0,0.04379109]
[1734198212884,0.73547153,101070.0,101050.0,0.52969115]
[1734198213183,0.53960959,101060.0,101050.0,0.16425115]
[1734198213387,0.58908759,101060.0,101050.0,0.16425115]
[1734198213988,0.58908759,101060.0,101050.0,0.12146006]
[1734198214285,0.61836131,101060.0,101050.0,0.42027064]
[1734198214478,0.61836131,101060.0,101050.0,0.46356173]
[1734198215189,0.97916131,101060.0,101050.0,0.42027064]
[1734198215785,0.25756131,101060.0,101050.0,0.42027064]
[1734198215987,0.97916131,101060.0,101050.0,0.16475115]
[1734198216292,0.97916131,101060.0,101050.0,0.10295115]
[1734198216879,1.04085568,101060.0,101050.0,0.10295115]
[1734198217084,0.97916131,101060.0,101050.0,0.10295115]
[1734198219587,1.04085568,101060.0,101050.0,0.04389407]
[1734198219783,0.89446674,101060.0,101050.0,0.00060298]
[1734198219980,1.07326674,101060.0,101050.0,0.00060298]
[1734198220378,1.21974106,101060.0,101050.0,0.00060298]
[1734198220581,0.91755232,101060.0,101050.0,0.11177935]
[1734198220797,0.97924669,101060.0,101050.0,0.05008498]
[1734198220986,0.97924669,101060.0,101050.0,0.10938498]
[1734198222091,0.97924669,101060.0,101050.0,0.10888498]
[1734198222287,0.86807432,101060.0,101050.0,0.21387044]
[1734198222487,0.98525987,101060.0,101050.0,0.27547044]
[1734198222886,0.83878555,101060.0,101050.0,0.27547044]
[1734198223594,0.83878555,101060.0,101050.0,0.21377607]
[1734198223799,0.92667956,101060.0,101050.0,0.27547044]
[1734198224090,1.04094106,101060.0,101050.0,0.00010298]
[1734198224595,0.86807432,101060.0,101050.0,0.06179735]
[1734198224802,0.86807432,101060.0,101050.0,0.23367935]
[1734198225009,0.92976869,101060.0,101050.0,0.23367935]
[1734198225887,0.97924669,101060.0,101050.0,0.23367935]
[1734198227191,0.91755232,101060.0,101050.0,0.17198498]
[1734198228594,0.91755232,101060.0,101050.0,0.21527607]
[1734198231391,0.91755232,101060.0,101050.0,0.09287607]
[1734198231588,1.21100847,101060.0,101050.0,0.09287607]
[1734198232597,1.1290619,101060.0,101050.0,0.04958498]
[1734198233797,1.03505232,101060.0,101050.0,0.04958498]
[1734198234197,1.03505232,101060.0,101050.0,0.22742857]
[1734198234901,1.1290619,101060.0,101050.0,0.22742857]
[1734198235697,1.13873285,101060.0,101050.0,0.22742857]
[1734198235997,1.13873285,101060.0,101050.0,0.04958498]
[1734198236202,1.13873285,101060.0,101050.0,0.27072802]
[1734198236798,1.13873285,101060.0,101050.0,0.09288443]
[1734198237494,1.04472327,101060.0,101050.0,0.09288443]
[1734198238007,1.04472327,101060.0,101050.0,0.27074383]
[1734198238912,1.03505232,101060.0,101050.0,0.27074383]
[1734198239205,1.03505232,101060.0,101050.0,0.09288443]
[1734198241106,1.1290619,101060.0,101050.0,0.09288443]
[1734198242106,1.1290619,101060.0,101050.0,0.27080827]
[1734198242311,1.21100847,101060.0,101050.0,0.27080827]
[1734198242905,1.03505232,101060.0,101050.0,0.27080827]
[1734198243211,0.91755232,101060.0,101050.0,0.33000064]
[1734198243407,1.03484818,101060.0,101050.0,0.33000064]
[1734198243609,1.03484818,101060.0,101050.0,0.54411022]
[1734198243911,0.88837504,101060.0,101050.0,0.60211022]
[1734198244113,1.03484936,101060.0,101050.0,0.60211022]
[1734198244608,1.03484936,101060.0,101050.0,0.50810064]
[1734198245117,0.771078,101060.0,101050.0,0.46480119]
[1734198245410,0.91755232,101060.0,101050.0,0.46480119]
[1734198246107,0.88839263,101060.0,101050.0,0.46480119]
[1734198247013,0.91755232,101060.0,101050.0,0.46480119]
[1734198247311,0.97925221,101060.0,101050.0,0.28670119]
[1734198247613,0.91755232,101060.0,101050.0,0.34840108]
[1734198248109,0.83892623,101060.0,101050.0,0.34840108]
[1734198248903,0.8389284,101060.0,101050.0,0.34840108]
[1734198249215,0.8389284,101060.0,101050.0,0.40726833]
[1734198250821,0.9269213,101060.0,101050.0,0.45056778]
[1734198251311,0.8389284,101060.0,101050.0,0.40726833]
[1734198252411,0.8389284,101060.0,101050.0,0.41703424]
[1734198255315,0.92689151,101060.0,101050.0,0.69750966]
[1734198257216,0.80956311,101060.0,101050.0,0.69750966]
[1734198257920,0.92689151,101060.0,101050.0,0.69750966]
[1734198259220,0.80956311,101060.0,101050.0,0.69750966]
[1734198260321,0.92689151,101060.0,101050.0,0.69750966]
[1734198260513,0.92689151,101060.0,101050.0,0.65421021]
[1734198260712,0.92689151,101060.0,101050.0,0.69750966]
[1734198260907,0.92689151,101060.0,101050.0,0.52203358]
[1734198261107,0.80956311,101060.0,101050.0,0.52203358]
[1734198261420,0.44874524,101070.0,101060.0,0.049478]
[1734198261722,0.44874524,101070.0,101060.0,0.69051616]
[1734198262213,0.44874524,101070.0,101060.0,0.92752855]
[1734198264822,0.3608,101070.0,101060.0,0.64721671]
[1734198265722,0.3608,101070.0,101060.0,0.56711638]
[1734198266021,0.44874524,101070.0,101060.0,0.45186833]
[1734198266412,0.56607364,101070.0,101060.0,0.45186833]
[1734198268319,0.67724653,101070.0,101060.0,0.32966844]
[1734198268512,0.79624653,101070.0,101060.0,0.39136833]
[1734198268710,0.73454664,101070.0,101060.0,0.39136833]
[1734198268921,0.73454664,101070.0,101060.0,0.15447734]
[1734198269328,0.73454664,101070.0,101060.0,0.39136833]
[1734198270116,0.73454664,101070.0,101060.0,0.56910081]
[1734198270826,0.73454664,101070.0,101060.0,0.56909319]
[1734198273219,0.6466014,101070.0,101060.0,0.56909319]
[1734198273614,0.73446337,101070.0,101060.0,0.56909319]
[1734198276716,0.79616326,101070.0,101060.0,0.5073933]
[1734198276921,0.70830129,101070.0,101060.0,0.5073933]
[1734198277133,0.85477561,101070.0,101060.0,0.5073933]
[1734198278226,0.85477561,101070.0,101060.0,0.46410147]
[1734198278428,0.73744721,101070.0,101060.0,0.22721048]
[1734198279026,0.73744721,101070.0,101060.0,0.27050526]
[1734198279228,0.73744721,101070.0,101060.0,0.17773248]
[1734198280024,0.91340336,101070.0,101050.0,0.46420745]
[1734198280228,0.65788727,101060.0,101050.0,0.50750458]
[1734198280432,0.79554626,101060.0,101050.0,0.50750458]
[1734198280627,0.79554626,101060.0,101050.0,0.56920447]
[1734198280827,0.64907194,101060.0,101050.0,0.56920447]
[1734198281128,0.79554626,101060.0,101050.0,0.33231348]
[1734198283228,0.67394637,101060.0,101050.0,0.33231348]
[1734198283632,0.55675232,101060.0,101050.0,0.33231348]
[1734198283931,0.67390814,101060.0,101050.0,0.33231348]
[1734198285132,0.52743382,101060.0,101050.0,0.33231348]
[1734198288142,0.31617126,101060.0,101050.0,0.33231348]
[1734198288332,1.03777126,101060.0,101050.0,0.33231348]
[1734198289033,1.03777126,101060.0,101050.0,0.27061359]
[1734198289932,1.03777126,101060.0,101050.0,0.22113259]
[1734198291541,0.94993371,101060.0,101050.0,0.22113259]
[1734198291737,0.94993371,101060.0,101050.0,0.27061459]
[1734198292443,0.22833371,101060.0,101050.0,0.27061459]
[1734198292640,0.94993371,101060.0,101050.0,0.27061459]
[1734198293845,0.94993371,101060.0,101050.0,0.33231448]
[1734198294045,0.94993371,101060.0,101050.0,0.27061459]
[1734198295042,0.94993371,101060.0,101050.0,0.22731746]
[1734198298049,0.94993371,101060.0,101050.0,0.46420845]
[1734198299653,0.22833371,101060.0,101050.0,0.46420845]
[1734198299837,0.94993371,101060.0,101050.0,0.22731746]
[1734198300348,1.09640803,101060.0,101050.0,0.22731746]
[1734198300649,1.09640803,101060.0,101050.0,0.27061459]
[1734198301254,1.15810792,101060.0,101050.0,0.27061459]
[1734198301443,1.09640803,101060.0,101050.0,0.27061459]
[1734198301937,1.09640803,101060.0,101050.0,0.33221459]
[1734198303843,0.37480803,101060.0,101050.0,0.33221459]
[1734198304039,1.09640803,101060.0,101050.0,0.56910558]
[1734198304957,0.97925221,101060.0,101050.0,0.52580845]
[1734198307150,0.97925221,101060.0,101050.0,0.34807597]
[1734198307454,0.97925221,101060.0,101050.0,0.3913729]
[1734198308249,0.25765221,101060.0,101050.0,0.3913729]
[1734198308449,0.97925221,101060.0,101050.0,0.3913729]
[1734198309849,0.91755232,101060.0,101050.0,0.3913729]
[1734198312147,0.86807432,101060.0,101050.0,0.40977586]
[1734198312355,0.92686058,101060.0,101050.0,0.51252073]
[1734198312555,0.92686058,101060.0,101050.0,0.92965366]
[1734198312955,0.92686058,101060.0,101050.0,0.63331473]
[1734198313258,0.7539062,101060.0,101050.0,0.8682314]
[1734198315155,0.7539062,101060.0,101050.0,0.92993129]
[1734198315356,0.56656058,101070.0,101050.0,0.92993129]
[1734198315556,0.56656058,101070.0,101060.0,0.52557018]
[1734198315753,0.56656058,101070.0,101060.0,0.56886711]
[1734198315959,0.56656058,101070.0,101060.0,0.86548367]
[1734198316158,0.56606058,101070.0,101060.0,0.86548367]
[1734198316461,0.56606058,101070.0,101060.0,0.56886711]
[1734198316863,0.56606058,101070.0,101060.0,0.86548367]
[1734198317260,0.56656058,101070.0,101060.0,0.56886711]
[1734198317464,0.44926669,101070.0,101060.0,0.86548367]
[1734198318161,0.3608,101070.0,101060.0,0.62829127]
[1734198318360,0.3608,101070.0,101060.0,1.08237196]
[1734198318668,0.44876669,101070.0,101060.0,0.84538536]
[1734198319359,0.3613,101070.0,101060.0,0.86521842]
[1734198319565,0.3613,101070.0,101060.0,0.62829127]
[1734198320565,0.3613,101070.0,101060.0,1.08249127]
[1734198321972,0.3613,101070.0,101060.0,0.82186511]
[1734198322153,0.3608,101070.0,101060.0,0.82186511]
[1734198322357,0.3608,101070.0,101060.0,0.52524855]
[1734198324455,0.3608,101070.0,101060.0,0.64965959]
[1734198324659,0.3608,101070.0,101060.0,0.63559472]
[1734198324869,0.410273,101070.0,101060.0,0.58611672]
[1734198325061,0.410273,101070.0,101060.0,0.51942246]
[1734198325256,0.61693969,101070.0,101060.0,0.28255169]
[1734198325555,0.67863958,101070.0,101060.0,0.28254948]
[1734198325759,0.79593347,101070.0,101060.0,0.10499461]
[1734198325959,0.79593347,101070.0,101060.0,0.06169989]
[1734198326163,0.8544411,101070.0,101060.0,0.06169989]
[1734198326469,0.8544411,101070.0,101060.0,0.10499533]
[1734198326666,0.8544411,101070.0,101060.0,0.10499553]
[1734198326970,0.8544411,101070.0,101060.0,0.06169989]
[1734198327674,0.8544411,101070.0,101060.0,0.11117789]
[1734198327862,0.79274121,101070.0,101060.0,0.11117789]
[1734198329576,0.8544411,101070.0,101060.0,0.11117789]
[1734198330573,0.8544411,101070.0,101060.0,0.049478]
[1734198331474,0.8544411,101070.0,101060.0,0.11117789]
[1734198331680,0.79274121,101070.0,101060.0,0.11117789]
[1734198334078,0.74326821,101070.0,101060.0,0.17287778]
[1734198334275,0.62456821,101070.0,101060.0,0.17287778]
[1734198334470,0.47809389,101070.0,101060.0,0.23517778]
[1734198334671,0.47809389,101070.0,101060.0,0.41273265]
[1734198335180,0.56586409,101070.0,101060.0,0.41273265]
[1734198335378,0.4485702,101070.0,101060.0,0.64960342]
[1734198337177,0.4485702,101070.0,101060.0,0.58790353]
[1734198337379,0.56586409,101070.0,101060.0,0.58790353]
[1734198338272,0.52756689,101070.0,101060.0,0.34804866]
[1734198338471,0.64426689,101070.0,101060.0,0.34804866]
[1734198340685,0.28346689,101070.0,101060.0,0.34804866]
[1734198340881,1.00506689,101070.0,101060.0,0.40974855]
[1734198342885,1.00506689,101070.0,101060.0,0.58748757]
[1734198342886,1.04342208,101070.0,101060.0,0.58748757]
[1734198343082,0.92672239,101070.0,101060.0,0.58748757]
[1734198343386,0.92672239,101070.0,101060.0,0.52724855]
[1734198343595,0.8094285,101070.0,101060.0,0.74827984]
[1734198345292,0.4486285,101070.0,101060.0,0.7578768]
[1734198345692,0.4486285,101070.0,101060.0,0.58014164]
[1734198345895,0.3608,101070.0,101060.0,0.8767582]
[1734198346102,0.3608,101070.0,101060.0,1.09442111]
[1734198346604,0.3608,101070.0,101060.0,1.09426979]
[1734198351304,0.20523694,101080.0,101070.0,0.049473]
[1734198351305,0.20573694,101080.0,101070.0,0.049473]
[1734198351499,0.20573694,101080.0,101070.0,0.64962093]
[1734198351801,0.44924305,101080.0,101070.0,0.41021469]
[1734198352196,0.44874305,101080.0,101070.0,0.41021469]
[1734198353208,0.44924305,101080.0,101070.0,0.45351082]
[1734198353397,0.44924305,101080.0,101070.0,0.63118323]
[1734198353708,0.44924305,101080.0,101070.0,0.45351082]
[1734198356400,0.44874305,101080.0,101070.0,0.45351082]
[1734198356998,0.44874305,101080.0,101070.0,0.51521071]
[1734198357199,0.44874305,101080.0,101070.0,0.45351082]
[1734198357607,0.44874305,101080.0,101070.0,0.41021469]
[1734198357918,0.08794305,101080.0,101070.0,0.47191458]
[1734198359801,0.08794305,101080.0,101070.0,0.51521071]
[1734198360003,0.00011455,101080.0,101070.0,0.51521071]
[1734198360204,0.00011455,101080.0,101070.0,0.81182727]
[1734198361301,0.00011455,101080.0,101070.0,1.03053846]
[1734198361706,0.00011455,101080.0,101070.0,1.03052045]
[1734198363411,0.00011455,101080.0,101070.0,1.03076793]
[1734198363999,0.00011455,101080.0,101070.0,0.79382613]
[1734198364411,0.00011455,101080.0,101070.0,1.14925917]
[1734198364604,0.00011455,101080.0,101070.0,0.79382613]
[1734198366707,0.00011455,101080.0,101070.0,0.75053]
[1734198367821,0.00011455,101080.0,101070.0,0.75057758]
[1734198368415,0.00011455,101080.0,101070.0,0.79387371]
[1734198368607,0.00011455,101080.0,101070.0,0.75057758]
[1734198371911,0.00011455,101080.0,101070.0,0.75114186]
[1734198374309,0.08794305,101080.0,101070.0,0.75114186]
[1734198374913,0.47809389,101090.0,101080.0,0.049468]
[1734198375107,0.47809389,101090.0,101080.0,0.46744365]
[1734198375407,0.47859389,101090.0,101080.0,0.46744365]
[1734198376323,0.11729389,101090.0,101080.0,0.46744365]
[1734198376513,0.5946782,101100.0,101090.0,0.049463]
[1734198376720,0.5946782,101100.0,101090.0,0.52592572]
[1734198377412,0.5946782,101100.0,101090.0,0.3914475]
[1734198377617,0.5946782,101100.0,101090.0,0.45314739]
[1734198377814,0.5946782,101100.0,101090.0,0.40987011]
[1734198378223,0.5946782,101100.0,101090.0,0.34817022]
[1734198378915,0.5946782,101100.0,101090.0,0.52591606]
[1734198379421,0.5946782,101100.0,101090.0,0.52592152]
[1734198379422,0.5951782,101100.0,101090.0,0.52592152]
[1734198379818,0.5951782,101100.0,101090.0,0.52591971]
[1734198381821,0.5951782,101100.0,101090.0,0.56919816]
[1734198382023,0.5951782,101100.0,101090.0,0.57925438]
[1734198383731,0.5951782,101100.0,101090.0,0.53597593]
[1734198383914,0.2343782,101100.0,101090.0,0.53597593]
[1734198384114,0.9559782,101100.0,101090.0,0.53597593]
[1734198385215,0.8408782,101100.0,101090.0,0.64095427]
[1734198385414,0.8408782,101100.0,101090.0,0.69865427]
[1734198386119,0.1192782,101100.0,101090.0,0.69865427]
[1734198386321,0.1192782,101100.0,101090.0,1.04049312]
[1734198386522,0.00198431,101100.0,101090.0,1.47644038]
[1734198386731,0.00198431,101100.0,101090.0,1.12100734]
[1734198386928,0.00198431,101100.0,101090.0,1.47644038]
[1734198387230,0.0005,101100.0,101090.0,1.12100734]
[1734198387423,0.0005,101100.0,101090.0,1.47644038]
[1734198387628,0.0005,101100.0,101090.0,1.5905857]
[1734198388030,0.47809389,101110.0,101100.0,0.049458]
[1734198388225,0.47809389,101110.0,101100.0,0.70335381]
[1734198389319,0.47809389,101110.0,101100.0,0.52558408]
[1734198390822,0.3608,101110.0,101100.0,0.58728397]
[1734198391024,0.47809389,101120.0,101110.0,0.049453]
[1734198391228,0.47809389,101120.0,101110.0,0.58357255]
[1734198391430,0.47809389,101120.0,101110.0,0.40834692]
[1734198391620,0.47809389,101120.0,101110.0,0.64527244]
[1734198392024,0.47809389,101120.0,101110.0,0.66011244]